bitfinex-derivatives/quotes_ETHF0:USTF0_20250427
["timestamp","ask_amount","ask_price","bid_price","bid_amount"]
[1745736565495,6.4127,1800.1,1800.0,21.01996181]
[1745736566097,14.6205,1800.1,1800.0,21.01996181]
[1745736568502,14.6205,1800.1,1800.0,11.07975159]
[1745736568799,1.11089,1800.0,1799.8,1.11098]
[1745736569000,0.7873,1799.9,1799.8,1.11098]
[1745736569303,1.5838,1799.9,1799.8,1.11098]
[1745736569494,4.38135,1799.9,1799.7,11.74866077]
[1745736569994,1.6866,1799.8,1799.7,11.74866077]
[1745736571204,5.4086,1799.8,1799.7,11.74866077]
[1745736572507,5.4086,1799.8,1799.7,10.63765077]
[1745736572804,6.51959,1799.8,1799.7,10.63765077]
[1745736574504,6.51959,1799.8,1799.7,3.2078]
[1745736574711,5.4086,1799.8,1799.7,4.31885]
[1745736575606,5.4086,1799.8,1799.7,1.11105]
[1745736576407,5.4086,1799.8,1799.7,2.83195]
[1745736577509,5.4086,1799.8,1799.6,3.2078]
[1745736577709,1.7015,1799.7,1799.6,4.3189]
[1745736577908,1.7015,1799.7,1799.6,6.0398]
[1745736578109,5.4235,1799.7,1799.6,6.0398]
[1745736582114,6.53455,1799.7,1799.6,4.9287]
[1745736582413,6.5346,1799.7,1799.4,16.21814077]
[1745736582608,3.3261,1799.6,1799.4,17.95294077]
[1745736583114,8.15921,1799.6,1799.4,17.08464077]
[1745736583317,1.6943,1799.5,1799.4,17.08464077]
[1745736584117,5.4163,1799.5,1799.4,17.08464077]
[1745736585014,5.4163,1799.5,1799.4,15.97345077]
[1745736585221,5.4163,1799.5,1799.4,13.87688077]
[1745736585921,6.52747,1799.5,1799.4,5.3358]
[1745736586121,6.52747,1799.5,1799.4,1.7348]
[1745736588815,1.11123,1799.4,1799.3,8.24225077]
[1745736589015,2.82793,1799.4,1799.3,7.42985077]
[1745736589212,6.54993,1799.4,1799.3,7.42985077]
[1745736589417,11.54993,1799.4,1799.3,7.42985077]
[1745736589615,1.11129,1799.3,1799.2,11.07975159]
[1745736589820,7.69289,1799.3,1799.2,11.07975159]
[1745736590020,12.69289,1799.3,1799.2,11.07975159]
[1745736590224,16.41489,1799.3,1799.2,11.07975159]
[1745736592328,11.41489,1799.3,1799.2,11.07975159]
[1745736594326,17.32689,1799.3,1799.2,11.07975159]
[1745736594525,22.32689,1799.3,1799.2,11.07975159]
[1745736594929,17.32689,1799.3,1799.2,11.07975159]
[1745736596427,22.32689,1799.3,1799.2,11.07975159]
[1745736597829,17.32689,1799.3,1799.2,11.07975159]
[1745736598522,22.32689,1799.3,1799.2,11.07975159]
[1745736598829,17.32689,1799.3,1799.2,11.07975159]
[1745736599027,16.2156,1799.3,1799.1,1.11141]
[1745736599231,9.634,1799.3,1799.2,1.11136]
[1745736599530,9.634,1799.3,1799.2,1.6849]
[1745736599733,10.74529,1799.3,1799.2,1.6849]
[1745736600026,10.74529,1799.3,1799.2,0.8675]
[1745736600027,13.95309,1799.3,1799.2,0.8675]
[1745736600228,9.67059,1799.3,1799.1,1.6163]
[1745736600429,1.97366,1799.2,1799.1,2.72771]
[1745736600730,1.97366,1799.2,1799.1,1.6163]
[1745736601026,3.66166,1799.2,1799.1,1.6163]
[1745736601230,7.38366,1799.2,1799.1,2.72772]
[1745736601732,7.38366,1799.2,1799.1,1.6163]
[1745736602133,3.722,1799.2,1799.1,2.72772]
[1745736603530,4.83336,1799.2,1799.1,2.72772]
[1745736603731,3.722,1799.2,1799.1,2.72772]
[1745736604330,4.83336,1799.2,1799.1,2.72772]
[1745736604532,3.722,1799.2,1799.1,2.72772]
[1745736605335,6.9298,1799.2,1799.1,2.72772]
[1745736605832,5.912,1799.4,1799.3,1.11129]
[1745736606128,4.83327,1799.4,1799.2,2.69693]
[1745736606334,4.31911,1799.3,1799.1,1.1114]
[1745736606526,4.005,1799.3,1799.2,2.69696]
[1745736606726,0.7972,1799.3,1799.2,2.69696]
[1745736606924,1.90849,1799.3,1799.2,1.5856]
[1745736607233,5.63049,1799.3,1799.2,1.5856]
[1745736607434,4.5192,1799.3,1799.2,2.69696]
[1745736607836,5.63049,1799.3,1799.2,1.5856]
[1745736608229,4.5192,1799.3,1799.2,2.69696]
[1745736608429,3.722,1799.3,1799.2,2.69696]
[1745736609330,3.722,1799.3,1799.2,10.90476]
[1745736609625,3.722,1799.3,1799.2,14.50576]
[1745736610439,3.722,1799.3,1799.2,9.50576]
[1745736614034,0.01414923,1799.3,1799.2,14.50576]
[1745736616041,3.2078,1799.8,1799.7,1.11105]
[1745736617341,6.9298,1799.8,1799.7,2.76995]
[1745736617842,8.04079,1799.8,1799.7,1.6589]
[1745736618034,1.11106,1799.7,1799.5,1.11117]
[1745736618235,1.6996,1799.7,1799.5,2.77007]
[1745736619146,5.4216,1799.7,1799.6,1.6589]
[1745736619531,6.53265,1799.7,1799.6,1.6589]
[1745736619736,5.4216,1799.7,1799.6,2.77001]
[1745736620143,3.722,1799.7,1799.6,2.77001]
[1745736622845,3.722,1799.7,1799.6,1.6589]
[1745736623336,3.722,1799.7,1799.6,2.77001]
[1745736628443,1.11124,1799.4,1799.2,4.31914]
[1745736628749,1.11121,1799.5,1799.3,1.96809]
[1745736629250,4.83321,1799.5,1799.3,1.96809]
[1745736629745,1.6711,1799.4,1799.3,3.54959]
[1745736631049,5.3931,1799.4,1799.3,3.54959]
[1745736644354,3.722,1799.4,1799.3,3.54959]
[1745736659162,3.2036,1799.6,1799.4,1.11118]
[1745736659363,3.2036,1799.6,1799.4,2.79428]
[1745736659663,3.2036,1799.6,1799.5,1.6831]
[1745736660058,6.9256,1799.6,1799.5,1.6831]
[1745736660265,6.9256,1799.6,1799.5,2.79427]
[1745736660461,3.722,1799.6,1799.5,6.39527]
[1745736660966,3.722,1799.6,1799.5,7.22607]
[1745736661165,3.722,1799.8,1799.7,1.11105]
[1745736661662,4.83299,1799.8,1799.6,1.6831]
[1745736661862,6.46759,1799.8,1799.6,2.79419]
[1745736662059,2.5309,1799.7,1799.6,2.79419]
[1745736662264,2.5309,1799.7,1799.6,1.6831]
[1745736662967,2.5309,1799.7,1799.6,2.79421]
[1745736663169,6.2529,1799.7,1799.6,2.79421]
[1745736666364,7.36395,1799.7,1799.6,1.6831]
[1745736668067,7.36395,1799.7,1799.5,1.11116]
[1745736668268,2.4385,1799.6,1799.5,1.11116]
[1745736668864,2.4385,1799.6,1799.5,2.71396]
[1745736669061,6.1605,1799.6,1799.5,2.71396]
[1745736670572,6.1605,1799.6,1799.3,15.52495159]
[1745736670771,2.74089,1799.5,1799.3,18.23900159]
[1745736671070,1.6297,1799.4,1799.3,18.23900159]
[1745736672172,5.3517,1799.4,1799.3,18.23900159]
[1745736672868,3.722,1799.4,1799.3,18.23900159]
[1745736673171,3.722,1799.4,1799.3,7.15925]
[1745736674967,3.722,1799.4,1799.3,3.55925]
[1745736675669,3.722,1799.4,1799.3,13.35916589]
[1745736677978,3.722,1799.4,1799.3,3.55925]
[1745736678575,3.722,1799.4,1799.3,2.71405]
[1745736678777,4.5662,1799.4,1799.3,2.71405]
[1745736682779,3.722,1799.4,1799.3,2.71405]
[1745736685191,3.2078,1799.7,1799.6,1.11111]
[1745736685891,3.2078,1799.7,1799.5,3.50622]
[1745736686189,6.9298,1799.7,1799.6,2.71511]
[1745736688291,3.2078,1799.7,1799.6,2.71511]
[1745736689085,6.9298,1799.7,1799.6,2.71511]
[1745736691094,3.722,1799.7,1799.6,2.71511]
[1745736693293,4.0479,1799.8,1799.7,1.11105]
[1745736693493,4.0479,1799.8,1799.7,2.82475]
[1745736693697,4.31871,1800.0,1799.8,1.11096]
[1745736693893,4.31871,1800.0,1799.9,1.7137]
[1745736694391,9.60761,1800.0,1799.9,1.7137]
[1745736695500,9.60761,1800.0,1799.9,2.82462]
[1745736695698,9.60761,1800.0,1799.9,1.7137]
[1745736695999,8.4967,1800.0,1799.9,2.82462]
[1745736697300,9.60756,1800.0,1799.9,2.82462]
[1745736697894,8.4967,1800.0,1799.9,2.82462]
[1745736698100,9.60756,1800.0,1799.9,1.7137]
[1745736698491,9.60756,1800.0,1799.9,2.82462]
[1745736698691,9.60756,1800.0,1799.9,1.7137]
[1745736699604,1.111,1799.8,1799.5,11.08845159]
[1745736699805,1.11102,1799.8,1799.7,1.11103]
[1745736700297,6.49002,1799.8,1799.7,1.11103]
[1745736700597,5.379,1799.8,1799.7,1.11103]
[1745736701000,5.379,1799.8,1799.7,1.93343]
[1745736701399,5.379,1799.8,1799.7,3.55583]
[1745736703005,6.48999,1799.8,1799.7,2.4448]
[1745736703214,8.08089,1799.8,1799.7,2.4448]
[1745736703604,1.11111,1799.6,1799.5,0.0087]
[1745736704209,4.83311,1799.6,1799.5,0.0087]
[1745736704511,1.11117,1799.5,1799.4,11.07975159]
[1745736704807,4.38237,1799.5,1799.4,11.07975159]
[1745736705200,8.10437,1799.5,1799.4,11.07975159]
[1745736706406,1.11123,1799.4,1799.3,0.0087]
[1745736706601,2.83253,1799.4,1799.3,0.0087]
[1745736707111,6.55453,1799.4,1799.3,0.0087]
[1745736707711,6.55453,1799.4,1799.3,1.11999]
[1745736707911,6.55453,1799.4,1799.3,2.83739]
[1745736708114,6.55453,1799.4,1799.3,1.7261]
[1745736708608,6.55453,1799.4,1799.3,2.83739]
[1745736709011,6.55453,1799.4,1799.3,1.7261]
[1745736712517,9.76233,1799.4,1799.3,1.7261]
[1745736713618,9.76233,1799.4,1799.3,0.0087]
[1745736715217,6.55453,1799.4,1799.3,0.0087]
[1745736715512,9.76233,1799.4,1799.3,0.0087]
[1745736717319,9.76233,1799.4,1799.3,1e-08]
[1745736717320,18.36233,1799.4,1799.3,1e-08]
[1745736720421,24.27433,1799.4,1799.3,1e-08]
[1745736722126,1.11148,1799.0,1798.9,1.66]
[1745736722317,4.31928,1799.0,1798.9,1.66]
[1745736722623,3.2078,1799.0,1798.9,2.77154]
[1745736722821,4.31928,1799.0,1798.9,1.66]
[1745736723222,1.11154,1798.9,1798.7,2.73692]
[1745736723524,8.04132,1799.0,1798.8,2.7381]
[1745736723728,8.04133,1799.0,1798.9,1.6265]
[1745736724920,6.9298,1799.0,1798.7,1.6253]
[1745736725117,1.1116,1798.8,1798.7,1.6253]
[1745736726120,3.2078,1798.8,1798.3,11.73983832]
[1745736726321,3.2078,1798.8,1798.3,9.33883832]
[1745736726322,1.11181,1798.5,1798.3,9.33883832]
[1745736726619,4.31957,1798.6,1798.4,1.11185]
[1745736726925,1.11177,1798.6,1798.4,1.11185]
[1745736727117,1.11182,1798.5,1798.3,9.33885832]
[1745736727426,1.11185,1798.4,1798.3,8.22696832]
[1745736727725,2.79765,1798.4,1798.3,8.22696832]
[1745736728219,6.51965,1798.4,1798.3,8.22696832]
[1745736728629,5.4078,1798.4,1798.3,9.33887832]
[1745736728819,3.722,1798.4,1798.3,9.33887832]
[1745736730423,3.722,1798.4,1798.3,14.33887832]
[1745736731023,3.722,1798.4,1798.3,9.33887832]
[1745736731226,10.23154,1798.6,1798.4,1.11184]
[1745736731426,1.11181,1798.5,1798.3,1.91869]
[1745736731721,10.23158,1798.6,1798.3,1.91869]
[1745736732128,13.95358,1798.6,1798.3,1.91869]
[1745736732329,1.11179,1798.5,1798.3,1.91869]
[1745736733027,8.04158,1798.6,1798.3,1.91869]
[1745736733223,1.1118,1798.5,1798.3,1.91869]
[1745736733630,4.31957,1798.6,1798.3,1.91869]
[1745736734034,1.11181,1798.5,1798.3,1.91869]
[1745736734226,4.83381,1798.5,1798.3,1.91869]
[1745736734532,4.83381,1798.5,1798.3,0.8068]
[1745736735031,4.83381,1798.5,1798.3,1.9187]
[1745736735431,3.722,1798.5,1798.4,1.11185]
[1745736736725,3.722,1798.5,1798.4,9.31965]
[1745736737218,5.912,1798.8,1798.6,1.1117]
[1745736737420,7.91838,1798.9,1798.7,1.6264]
[1745736737630,1.1116,1798.8,1798.7,1.6264]
[1745736738125,4.8336,1798.8,1798.7,1.6264]
[1745736738935,8.722,1798.8,1798.2,6.8078]
[1745736739131,1.11182,1798.5,1798.3,3.57239]
[1745736739429,1.11182,1798.5,1798.4,1.6138]
[1745736739629,6.5223,1798.7,1798.4,2.72563]
[1745736739630,2.72336,1798.6,1798.4,2.72563]
[1745736739830,2.72336,1798.6,1798.5,1.6138]
[1745736740237,6.44536,1798.6,1798.5,1.6138]
[1745736741136,6.44536,1798.6,1798.5,2.72559]
[1745736741343,3.722,1798.6,1798.5,2.72559]
[1745736742237,4.83373,1798.6,1798.5,1.6138]
[1745736742436,6.54113,1798.6,1798.5,1.6138]
[1745736742637,7.37313,1798.6,1798.5,1.6138]
[1745736745141,6.2614,1798.6,1798.5,2.72559]
[1745736745441,7.37313,1798.6,1798.5,1.6138]
[1745736746539,6.2614,1798.6,1798.5,2.72559]
[1745736746742,7.37313,1798.6,1798.5,1.6138]
[1745736747544,7.37313,1798.6,1798.5,2.72559]
[1745736747545,6.2614,1798.6,1798.5,2.72559]
[1745736747841,3.722,1798.6,1798.5,2.72559]
[1745736748345,4.31946,1798.7,1798.6,1.11173]
[1745736748542,4.31946,1798.7,1798.6,3.68343]
[1745736749143,8.04146,1798.7,1798.6,3.68343]
[1745736749544,8.04146,1798.7,1798.6,2.5717]
[1745736749942,9.76656,1798.7,1798.6,2.5717]
[1745736750545,9.76656,1798.7,1798.6,3.68343]
[1745736750944,9.76656,1798.7,1798.6,2.5717]
[1745736751247,1.11176,1798.6,1798.4,1.91762]
[1745736751544,3.66476,1798.6,1798.4,1.91762]
[1745736751737,2.553,1798.6,1798.5,1.11179]
[1745736751936,2.553,1798.6,1798.5,2.68919]
[1745736752143,6.275,1798.6,1798.5,2.68919]
[1745736753050,7.38673,1798.6,1798.5,1.5774]
[1745736754343,7.38673,1798.6,1798.5,2.68919]
[1745736754947,7.38673,1798.6,1798.5,1.5774]
[1745736755244,8.23773,1798.6,1798.5,1.5774]
[1745736757446,8.23773,1798.6,1798.5,2.68919]
[1745736757650,8.23773,1798.6,1798.5,1.5774]
[1745736758546,8.23773,1798.6,1798.5,2.68919]
[1745736759346,8.23773,1798.6,1798.5,1.5774]
[1745736759554,7.126,1798.6,1798.5,2.68919]
[1745736759845,4.5756,1798.6,1798.5,3.55299]
[1745736760046,5.68733,1798.6,1798.5,3.55299]
[1745736760248,7.35643,1798.6,1798.5,2.4412]
[1745736760746,7.35643,1798.6,1798.5,1.5774]
[1745736761234,7.35643,1798.6,1798.5,2.68919]
[1745736765150,7.35643,1798.6,1798.5,1.5774]
[1745736767350,10.56423,1798.6,1798.5,1.5774]
[1745736769053,10.56423,1798.6,1798.5,2.3889]
[1745736770355,7.35643,1798.6,1798.5,2.3889]
[1745736770560,10.56423,1798.6,1798.5,2.3889]
[1745736772559,7.35643,1798.6,1798.5,2.3889]
[1745736772758,10.56423,1798.6,1798.5,2.3889]
[1745736772959,7.35643,1798.6,1798.5,2.3889]
[1745736773260,10.56423,1798.6,1798.5,2.3889]
[1745736775158,7.35643,1798.6,1798.5,2.3889]
[1745736775657,10.56423,1798.6,1798.5,2.3889]
[1745736775855,7.35643,1798.6,1798.5,2.3889]
[1745736776062,10.56423,1798.6,1798.5,2.3889]
[1745736778667,10.56423,1798.6,1798.5,3.50069]
[1745736778958,6.9298,1798.6,1798.5,3.50069]
[1745736779263,3.2078,1798.6,1798.5,3.50069]
[1745736779664,4.31953,1798.6,1798.5,2.3889]
[1745736780165,9.30654094,1798.6,1798.5,2.3889]
[1745736780366,11.00644094,1798.6,1798.5,2.3889]
[1745736781566,7.79864094,1798.6,1798.5,2.3889]
[1745736781867,11.00644094,1798.6,1798.5,3.50069]
[1745736782068,11.00644094,1798.6,1798.5,2.3889]
[1745736788178,7.79864094,1798.6,1798.5,2.3889]
[1745736788379,11.00644094,1798.6,1798.5,2.3889]
[1745736791672,7.39671094,1798.6,1798.5,3.50069]
[1745736791981,4.18891094,1798.6,1798.5,3.50069]
[1745736792174,0.46691094,1798.6,1798.5,3.50069]
[1745736792477,0.46691094,1798.6,1798.5,4.34159]
[1745736793179,3.722,1798.6,1798.5,4.34159]
[1745736793780,3.722,1798.6,1798.5,11.74842358]
[1745736799185,3.59915,1798.8,1798.5,11.74842358]
[1745736799386,3.59915,1798.8,1798.6,1.674]
[1745736799984,3.59915,1798.8,1798.7,0.7888]
[1745736800185,7.32115,1798.8,1798.7,0.7888]
[1745736800780,7.32115,1798.8,1798.7,2.4628]
[1745736804490,4.83365,1798.8,1798.7,2.4628]
[1745736807189,6.56355,1798.8,1798.7,2.4628]
[1745736808188,1.11173,1798.6,1798.5,7.40683358]
[1745736808392,4.4787,1798.7,1798.5,10.22787358]
[1745736808583,4.4787,1798.7,1798.6,3.65763]
[1745736808984,0.8351,1798.7,1798.6,3.65763]
[1745736809284,1.11164,1798.8,1798.7,1.11166]
[1745736809579,5.10769,1798.9,1798.7,2.82096]
[1745736809786,5.10769,1798.9,1798.8,0.8189]
[1745736809982,5.10769,1798.9,1798.8,3.6398]
[1745736810184,8.82969,1798.9,1798.8,2.5282]
[1745736811491,10.54749,1798.9,1798.8,2.5282]
[1745736820097,7.7181,1798.9,1798.8,3.6398]
[1745736820293,6.9298,1798.9,1798.8,3.6398]
[1745736820499,3.722,1798.9,1798.8,6.8476]
[1745736821400,3.722,1798.9,1798.8,11.8476]
[1745736821602,3.722,1798.9,1798.8,15.4466]
[1745736822101,7.02336,1799.2,1799.0,1.11144]
[1745736822399,1.11136,1799.2,1799.1,0.8542]
[1745736822597,1.11136,1799.2,1799.1,2.4405]
[1745736823100,4.83336,1799.2,1799.1,2.4405]
[1745736823293,6.47716,1799.2,1799.1,2.4405]
[1745736825100,6.47716,1799.2,1799.1,1.5863]
[1745736831107,9.68496,1799.2,1799.1,1.5863]
[1745736833104,6.47716,1799.2,1799.1,1.5863]
[1745736833308,9.68496,1799.2,1799.1,1.5863]
[1745736834901,6.47716,1799.2,1799.1,1.5863]
[1745736835103,9.68496,1799.2,1799.1,1.5863]
[1745736840604,8.04116,1799.2,1799.1,2.69772]
[1745736840805,6.9298,1799.2,1799.1,2.69772]
[1745736842112,3.2078,1799.2,1799.1,2.69772]
[1745736843108,4.31916,1799.2,1799.1,1.5863]
[1745736843314,7.60056,1799.2,1799.1,1.5863]
[1745736844213,11.32256,1799.2,1799.1,2.69772]
[1745736844711,11.32256,1799.2,1799.0,1.11144]
[1745736844912,11.32256,1799.2,1799.0,2.5091]
[1745736845718,11.32256,1799.2,1799.1,1.11142]
[1745736845916,11.32256,1799.2,1799.1,2.75532]
[1745736846914,10.2112,1799.2,1799.1,2.75532]
[1745736847118,6.9298,1799.2,1799.1,2.75532]
[1745736847315,6.9298,1799.2,1799.1,6.35332]
[1745736848118,3.2078,1799.2,1799.1,6.35332]
[1745736848314,3.19910002,1799.2,1799.1,11.35332]
[1745736848516,3.19910002,1799.2,1799.1,6.35332]
[1745736848723,0.8484,1799.5,1799.1,5.2419]
[1745736849016,4.0562,1799.5,1799.4,1.11123]
[1745736849819,4.0562,1799.5,1799.4,1.97923]
[1745736850120,7.7782,1799.5,1799.4,1.97923]
[1745736851922,4.5704,1799.5,1799.4,1.97923]
[1745736852219,7.7782,1799.5,1799.4,1.97923]
[1745736852419,8.88937,1799.5,1799.4,0.868]
[1745736852622,8.88937,1799.5,1799.4,1.97923]
[1745736852821,7.7782,1799.5,1799.4,3.67113]
[1745736853415,8.88937,1799.5,1799.4,2.5599]
[1745736853821,8.88937,1799.5,1799.4,3.67113]
[1745736854021,7.7782,1799.5,1799.4,3.67113]
[1745736855324,4.5704,1799.5,1799.4,3.67113]
[1745736857440,3.722,1799.5,1799.4,3.67113]
[1745736857623,3.722,1799.5,1799.4,6.87893]
[1745736857933,3.722,1799.5,1799.4,10.47593]
[1745736858136,3.2799,1799.8,1799.6,1.11107]
[1745736858329,3.2799,1799.8,1799.7,1.11105]
[1745736858632,0.7929,1799.8,1799.7,1.11105]
[1745736859123,4.5149,1799.8,1799.7,1.11105]
[1745736859324,4.5149,1799.8,1799.7,2.84775]
[1745736861027,6.1225,1799.8,1799.7,2.84775]
[1745736868843,1.6812,1799.8,1799.7,2.84775]
[1745736869046,1e-05,1799.8,1799.7,18.37355]
[1745736869341,4.8469,1800.6,1800.4,1.11057]
[1745736869538,2.463,1800.5,1800.4,1.11061]
[1745736870031,3.2718,1800.5,1800.4,1.11061]
[1745736870235,6.9938,1800.5,1800.4,1.11061]
[1745736870742,6.9938,1800.5,1800.4,2.73481]
[1745736871737,3.722,1800.5,1800.4,2.73481]
[1745736872143,3.2078,1800.8,1800.7,1.11043]
[1745736872547,1.6548,1800.9,1800.8,1.11037]
[1745736873344,5.3768,1800.9,1800.8,1.11037]
[1745736874634,6.9975,1800.9,1800.8,1.11037]
[1745736876947,4.5838,1800.9,1800.8,1.11037]
[1745736877149,4.5838,1800.9,1800.8,1.92807]
[1745736879450,4.5838,1800.9,1800.8,3.55307]
[1745736881250,6.2249,1800.9,1800.8,3.55307]
[1745736885453,7.33521,1800.9,1800.7,1.11039]
[1745736885654,6.2249,1800.9,1800.7,1.11043]
[1745736885854,1.7269,1800.8,1800.7,1.11043]
[1745736886060,1.7269,1800.8,1800.7,2.75793]
[1745736886354,5.4489,1800.8,1800.7,2.75793]
[1745736889348,5.4489,1800.8,1800.4,4.039]
[1745736889655,3.64906,1800.7,1800.5,6.36173]
[1745736889856,1.7136,1800.6,1800.5,6.36173]
[1745736890252,5.4356,1800.6,1800.5,6.36173]
[1745736894058,3.722,1800.6,1800.5,6.36173]
[1745736895258,3.722,1800.7,1800.6,1.11049]
[1745736895469,3.722,1800.7,1800.6,2.77709]
[1745736896059,1.7207,1800.8,1800.7,1.11043]
[1745736896262,1.7207,1800.8,1800.7,2.77703]
[1745736897259,5.4427,1800.8,1800.7,2.77703]
[1745736904167,6.55307,1800.8,1800.6,1.11045]
[1745736904463,1.709,1800.7,1800.6,2.70525]
[1745736905262,5.431,1800.7,1800.6,2.70525]
[1745736907170,1.709,1800.7,1800.6,2.70525]
[1745736907863,3.2078,1800.8,1800.7,1.11043]
[1745736908169,3.2078,1800.8,1800.7,2.67873]
[1745736909069,8.5202,1800.8,1800.7,2.67873]
[1745736912773,9.63057,1800.8,1800.7,1.5683]
[1745736913472,9.63057,1800.8,1800.7,2.67873]
[1745736915080,6.42277,1800.8,1800.7,2.67873]
[1745736915569,6.42277,1800.8,1800.7,1.5683]
[1745736915967,6.42277,1800.8,1800.7,2.67873]
[1745736916576,5.3124,1800.8,1800.7,2.67873]
[1745736918772,3.722,1800.8,1800.7,3.48393]
[1745736921063,5.4332,1800.8,1800.7,3.48393]
[1745736925176,6.54357,1800.8,1800.7,3.48393]
[1745736925979,6.54357,1800.8,1800.7,2.67873]
[1745736926176,6.54357,1800.8,1800.7,1.5683]
[1745736928279,6.54357,1800.8,1800.7,2.67873]
[1745736928481,6.54357,1800.8,1800.7,1.5683]
[1745736928682,1.11043,1800.7,1800.6,7.40683358]
[1745736928981,5.93603,1800.7,1800.6,7.40683358]
[1745736929285,10.49663,1800.7,1800.6,9.08403358]
[1745736929467,7.28883,1800.7,1800.6,9.08403358]
[1745736929670,10.49663,1800.7,1800.6,9.08403358]
[1745736930381,6.1784,1800.7,1800.6,10.19452358]
[1745736930983,7.28883,1800.7,1800.6,10.19452358]
[1745736931378,10.49663,1800.7,1800.6,10.19452358]
[1745736931683,9.3862,1800.7,1800.6,10.19452358]
[1745736931880,6.1784,1800.7,1800.6,10.19452358]
[1745736933778,9.3862,1800.7,1800.6,10.19452358]
[1745736933978,6.1784,1800.7,1800.6,10.19452358]
[1745736935481,5.3398,1800.7,1800.6,10.19452358]
[1745736935685,3.722,1800.7,1800.6,10.19452358]
[1745736936086,3.2078,1800.9,1800.8,1.11037]
[1745736936782,3.2078,1800.9,1800.8,2.80427]
[1745736938184,3.2078,1800.9,1800.8,10.21110358]
[1745736939386,3.2078,1800.9,1800.8,9.10073358]
[1745736939687,4.31811,1800.9,1800.8,9.10073358]
[1745736939884,6.5703,1800.9,1800.8,9.10073358]
[1745736940090,3.2078,1800.9,1800.8,20.06569554]
[1745736940395,8.04011,1800.9,1800.8,18.95532554]
[1745736941286,13.84571,1800.9,1800.8,17.26142554]
[1745736941887,8.84571,1800.9,1800.8,17.26142554]
[1745736943487,1.11037,1800.8,1800.7,11.11025037]
[1745736943697,3.55297,1800.8,1800.6,2.76678]
[1745736943991,3.55297,1800.8,1800.7,1.11043]
[1745736944189,7.27497,1800.8,1800.7,2.79063]
[1745736944591,6.1646,1800.8,1800.7,2.79063]
[1745736947300,7.27497,1800.8,1800.7,1.6802]
[1745736947502,7.27497,1800.8,1800.7,2.5301]
[1745736947898,6.1646,1800.8,1800.7,3.64053]
[1745736949098,3.722,1800.8,1800.7,3.64053]
[1745736949599,3.722,1800.8,1800.7,4.49983]
[1745736950903,4.83237,1800.8,1800.7,3.3894]
[1745736951106,3.722,1800.8,1800.7,4.49983]
[1745736952606,3.722,1800.8,1800.7,11.90666358]
[1745736954804,3.722,1800.8,1800.7,4.49983]
[1745736957709,3.722,1800.8,1800.7,11.90666358]
[1745736958399,4.83237,1800.8,1800.7,7.40683358]
[1745736958599,7.34177,1800.8,1800.7,7.40683358]
[1745736959609,7.34177,1800.8,1800.6,10.11572358]
[1745736959811,2.5208,1800.7,1800.6,10.11572358]
[1745736960202,7.35323,1800.7,1800.6,10.11572358]
[1745736960711,6.2428,1800.7,1800.6,10.11572358]
[1745736962111,3.722,1800.7,1800.6,10.11572358]
[1745736962409,3.722,1800.7,1800.6,18.32352358]
[1745736962711,2.56196,1800.7,1800.6,18.32352358]
[1745736963210,5.912,1801.1,1801.0,1.11024]
[1745736963801,5.912,1801.1,1801.0,3.59494]
[1745736963999,2.83806,1801.3,1801.1,1.11017]
[1745736964208,2.83806,1801.3,1801.1,2.473]
[1745736964405,1.6544,1801.2,1801.1,2.473]
[1745736964609,1.6544,1801.2,1801.1,3.58318]
[1745736964908,2.76452,1801.2,1801.1,2.473]
[1745736965108,5.3764,1801.2,1801.1,3.58318]
[1745736968208,3.722,1801.2,1801.1,3.58318]
[1745736969115,6.6391,1801.4,1801.2,1.11008]
[1745736969414,7.7491,1801.4,1801.3,1.6477]
[1745736969819,3.2078,1801.4,1801.3,2.75776]
[1745736970113,5.18519,1801.6,1801.4,1.10997]
[1745736970314,5.18519,1801.6,1801.5,1.6477]
[1745736970517,6.84649,1801.6,1801.5,1.6477]
[1745736971109,10.56849,1801.6,1801.5,1.6477]
[1745736973913,3.722,1801.6,1801.5,2.75764]
[1745736974216,4.31759,1801.8,1801.6,1.10983]
[1745736974415,6.03809,1801.8,1801.7,1.6076]
[1745736974913,6.03809,1801.8,1801.7,2.71741]
[1745736975219,8.6503,1801.8,1801.7,2.71741]
[1745736976205,9.76005,1801.8,1801.7,1.6076]
[1745736981122,1.10988,1801.6,1801.5,1.6825]
[1745736981617,1.10988,1801.6,1801.3,1.93243]
[1745736981618,1.10998,1801.5,1801.3,1.11003]
[1745736981811,4.38697,1801.5,1801.3,2.79253]
[1745736982119,1.11,1801.4,1801.3,2.79253]
[1745736982319,2.7089,1801.4,1801.3,2.79253]
[1745736982520,2.7089,1801.4,1801.3,1.6825]
[1745736983215,6.4309,1801.4,1801.3,1.6825]
[1745736986618,5.3209,1801.4,1801.3,2.79256]
[1745736988825,3.722,1801.4,1801.3,2.79256]
[1745736990723,3.722,1801.4,1801.3,1.6825]
[1745736990924,3.722,1801.4,1801.3,2.79256]
[1745736991126,5.3248,1801.4,1801.3,2.79256]
[1745736991824,5.3248,1801.4,1801.3,1.6825]
[1745736992021,5.3248,1801.4,1801.3,2.79256]
[1745736993519,3.722,1801.4,1801.3,2.79256]
[1745736994121,1.95088,1801.5,1801.3,2.79256]
[1745736994330,2.4473,1801.4,1801.3,2.79256]
[1745736994522,1.95088,1801.5,1801.3,2.79256]
[1745736994724,1.95088,1801.5,1801.4,1.5745]